bitfinex/quotes_ETHUSD_20260130
["timestamp","ask_amount","ask_price","bid_price","bid_amount"]
[1769799085984,13.97983735,2722.3,2720.8,14.5]
[1769799086180,13.97983735,2722.1,2720.8,14.5]
[1769799087566,13.97983735,2722.1,2720.7,0.001]
[1769799088159,13.97983735,2721.9,2720.7,0.001]
[1769799090791,13.97983735,2721.9,2720.7,14.501]
[1769799090991,13.97983735,2722.9,2720.7,14.501]
[1769799091194,13.97983735,2722.9,2720.8,0.769]
[1769799091692,13.97983735,2722.9,2720.9,0.77]
[1769799092896,13.97983735,2722.7,2720.8,1.68884739]
[1769799093395,13.97983735,2722.7,2720.9,0.77]
[1769799093580,13.97983735,2722.5,2720.9,0.77]
[1769799094166,13.97983735,2722.5,2720.9,0.001]
[1769799094366,13.97983735,2722.3,2720.7,0.001]
[1769799094603,13.97983735,2722.3,2720.7,0.91987407]
[1769799094899,14.89818948,2722.3,2720.8,14.5]
[1769799095217,13.97983735,2722.3,2720.8,14.5]
[1769799095370,6.48233037,2723.5,2720.7,0.001]
[1769799095700,0.002,2724.0,2720.7,0.001]
[1769799095701,13.97983735,2723.4,2720.7,0.001]
[1769799095903,13.97983735,2723.4,2721.4,14.5]
[1769799096398,0.91794453,2723.5,2720.7,0.001]
[1769799096399,13.97983735,2723.0,2720.7,0.001]
[1769799096572,13.97983735,2722.8,2720.7,0.001]
[1769799096773,13.97983735,2722.6,2720.7,15.41988117]
[1769799097078,13.97983735,2722.6,2720.7,14.501]
[1769799098102,13.97983735,2722.6,2720.7,15.271]
[1769799098895,13.97983735,2722.4,2720.7,16.18986112]
[1769799101205,14.89815879,2722.4,2720.7,14.501]
[1769799101373,14.89815879,2722.4,2720.7,15.271]
[1769799101569,14.89815879,2722.4,2720.7,16.18986539]
[1769799101975,14.89815879,2722.4,2720.7,16.18987013]
[1769799102300,16.20429913,2722.4,2720.7,16.18987013]
[1769799102501,14.89814873,2722.4,2720.7,16.18987013]
[1769799102810,14.89814887,2722.4,2720.7,16.18987013]
[1769799103023,14.89814887,2722.4,2720.8,0.77]
[1769799103511,14.89814887,2722.4,2720.9,0.77]
[1769799104207,14.89814887,2722.4,2720.7,15.41987586]
[1769799104208,14.89814887,2722.4,2720.7,14.501]
[1769799104377,13.97983735,2722.2,2720.8,0.77]
[1769799104890,14.89823891,2722.2,2720.8,0.77]
[1769799105711,13.97983735,2722.1,2720.8,0.77]
[1769799106481,13.97983735,2722.1,2720.8,1.68884563]
[1769799106682,13.97983735,2722.1,2720.8,0.77]
[1769799106982,13.97983735,2721.7,2720.8,0.77]
[1769799108011,13.97983735,2721.7,2720.9,0.001]
[1769799108375,13.97983735,2721.7,2720.3,0.77]
[1769799108579,13.97983735,2721.7,2720.1,0.0188731]
[1769799108806,13.97983735,2721.7,2720.1,14.5188731]
[1769799109012,13.97983735,2721.0,2718.7,0.91952681]
[1769799109196,13.97983735,2721.0,2718.8,0.77]
[1769799109516,13.97983735,2721.0,2718.9,3.67795193]
[1769799109682,13.97983735,2721.0,2718.8,0.77]
[1769799109877,13.97983735,2720.8,2719.0,14.5]
[1769799110690,13.97983735,2720.8,2719.4,0.91928734]
[1769799110887,14.89869224,2720.8,2719.1,0.91942186]
[1769799111213,14.89869224,2720.8,2719.0,14.5]
[1769799111420,14.89869224,2720.8,2719.0,15.41944603]
[1769799111629,13.97983735,2720.6,2719.0,15.41945091]
[1769799112136,13.97983735,2720.6,2719.0,15.41944233]
[1769799112319,13.97983735,2720.6,2719.0,14.5]
[1769799112505,13.97983735,2720.6,2719.0,15.41944644]
[1769799113096,13.97983735,2720.6,2719.2,0.5]
[1769799114123,13.97983735,2721.5,2719.2,0.5]
[1769799114590,13.97983735,2721.5,2719.7,14.5]
[1769799115116,13.97983735,2721.5,2719.8,1.68918523]
[1769799115701,13.97983735,2721.5,2719.9,14.5]
[1769799116929,13.97983735,2722.1,2719.8,1.68918523]
[1769799117217,13.97983735,2722.1,2720.4,14.5]
[1769799117428,0.002,2722.4,2720.5,0.2335703]
[1769799117941,13.98083735,2723.4,2720.8,0.2335703]
[1769799118161,13.97923735,2723.4,2721.4,14.5]
[1769799118922,13.97923735,2723.4,2721.1,0.91874609]
[1769799119225,13.97923735,2723.4,2721.2,0.2335703]
[1769799119430,13.97923735,2723.4,2721.9,14.5]
[1769799119591,13.97923735,2723.4,2722.0,0.77]
[1769799120195,0.002,2723.7,2722.0,0.77]
[1769799120427,0.002,2723.7,2722.1,14.5]
[1769799120599,0.002,2724.0,2722.2,0.2335703]
[1769799120803,13.98303735,2725.2,2722.3,0.03592529]
[1769799121002,13.98223735,2725.0,2722.5,0.91747364]
[1769799121313,13.98063735,2725.0,2723.2,14.5]
[1769799123025,13.98143735,2724.8,2723.3,0.91800389]
[1769799123203,13.7958101,2724.8,2723.3,0.91800389]
[1769799123408,0.002,2724.5,2723.3,0.91800389]
[1769799123809,0.002,2724.5,2723.2,14.5]
[1769799124118,13.89162373,2724.5,2723.2,15.41802187]
[1769799124646,13.89162373,2724.5,2723.4,0.5]
[1769799124827,13.89162373,2724.5,2723.2,14.5]
[1769799125023,13.88962373,2724.3,2723.2,14.5]
[1769799125203,13.88962373,2724.1,2720.7,3.67551867]
[1769799125402,13.88962373,2723.2,2720.8,0.77]
[1769799125616,0.1024,2722.5,2720.9,14.5]
[1769799125816,0.01103022,2723.3,2720.8,0.77]
[1769799125817,13.88962373,2722.2,2720.8,0.77]
[1769799126199,13.88962373,2722.2,2720.8,16.18883491]
[1769799126433,13.88962373,2722.2,2720.8,16.1888452]
[1769799126636,13.88962373,2722.2,2720.8,15.27]
[1769799126805,13.88962373,2722.2,2720.8,16.18884165]
[1769799127935,14.80742541,2723.9,2720.8,1.68884165]
[1769799128435,14.80742541,2723.9,2721.4,14.5]
[1769799128618,13.88962373,2723.7,2721.4,14.5]
[1769799129251,13.88962373,2723.7,2721.5,0.91861106]
[1769799129716,13.88962373,2724.4,2721.8,0.2335703]
[1769799129914,13.88962373,2724.4,2722.0,0.2335703]
[1769799130105,13.88962373,2724.4,2722.1,0.1024]
[1769799130310,13.88962373,2724.4,2722.2,0.2335703]
[1769799130544,0.002,2724.5,2722.2,0.2335703]
[1769799130745,13.89162373,2724.5,2722.2,0.2335703]
[1769799131165,13.89162373,2724.5,2722.4,0.2335703]
[1769799132253,13.88962373,2724.3,2721.5,3.67444107]
[1769799132436,13.88962373,2723.9,2721.9,0.77]
[1769799133053,13.88962373,2723.7,2721.9,0.77]
[1769799133555,13.88962373,2723.4,2721.9,0.77]
[1769799133727,13.88962373,2723.2,2721.9,0.77]
[1769799134129,13.50462373,2722.4,2719.9,3.67658324]
[1769799134357,13.50462373,2722.4,2720.1,0.91905846]
[1769799134528,13.50462373,2722.4,2720.2,0.91904476]
[1769799134854,13.50462373,2722.4,2720.1,3.67625978]
[1769799135052,13.50462373,2722.2,2721.0,0.001]
[1769799136347,0.0008,2722.5,2721.0,0.001]
[1769799137427,13.50542373,2722.5,2721.0,0.771]
[1769799139068,13.50462373,2722.3,2721.0,0.001]
[1769799141729,14.42296871,2722.3,2721.0,0.001]
[1769799141928,13.50462373,2722.3,2721.0,0.001]
[1769799142221,14.42297127,2722.3,2721.0,0.001]
[1769799142353,16.23267138,2722.3,2721.0,0.001]
[1769799143249,14.42298399,2722.3,2721.0,0.001]
[1769799144557,14.42298399,2722.3,2720.2,0.77]
[1769799144762,14.42298399,2722.3,2720.2,1.68903242]
[1769799145129,14.42298399,2722.3,2720.2,0.77]
[1769799145327,13.50412373,2721.9,2718.9,3.67794301]
[1769799145550,13.50412373,2721.5,2719.2,0.920357]
[1769799145753,13.50412373,2721.5,2719.5,0.91928438]
[1769799145988,13.50412373,2721.5,2719.4,0.91929789]
[1769799146154,13.50412373,2721.5,2720.0,0.91910025]
[1769799146347,13.50412373,2721.5,2720.2,0.91904662]
[1769799147261,13.50612373,2722.1,2719.6,0.2335703]
[1769799147447,13.50612373,2722.1,2720.2,0.77]
[1769799147876,13.50612373,2722.1,2720.3,0.2335703]
[1769799147877,0.002,2722.1,2720.3,0.2335703]
[1769799148173,0.0008,2722.5,2720.3,0.2335703]
[1769799148377,13.40492373,2722.7,2720.3,0.2335703]
[1769799149168,13.40492373,2722.7,2720.4,0.9189825]
[1769799149577,14.32313207,2722.7,2720.4,0.9189825]
[1769799151155,14.32313207,2722.7,2720.1,3.67629465]
[1769799151357,14.32313207,2722.7,2720.0,5.91911764]
[1769799151860,13.45652373,2722.5,2720.0,5.91911764]
[1769799152060,13.45652373,2722.3,2720.0,5.91911764]
[1769799152279,13.45652373,2722.1,2720.0,5.0]
[1769799153382,13.45652373,2721.9,2720.0,5.91908709]
[1769799153552,13.45652373,2721.9,2720.0,5.0]
[1769799153752,13.45652373,2721.5,2719.2,0.001]
[1769799153978,13.45652373,2721.5,2719.5,0.9192663]
[1769799154182,13.45652373,2721.3,2719.3,1.68932502]
[1769799154380,13.45652373,2721.3,2719.4,0.9193095]
[1769799154883,13.45652373,2721.3,2719.4,0.91929869]
[1769799155087,13.45652373,2721.3,2719.4,3.67722396]
[1769799156987,13.62659809,2722.0,2719.4,3.67722396]
[1769799157205,13.62659809,2722.0,2719.5,0.2335703]
[1769799157518,13.45652373,2722.8,2719.9,1.32052284]
[1769799157674,0.002,2723.4,2720.8,1.32052284]
[1769799157997,0.002,2723.4,2720.8,1.08695254]
[1769799158307,13.45852373,2723.4,2721.1,0.2335703]
[1769799158456,13.45852373,2723.4,2721.3,0.2335703]
[1769799159081,0.002,2723.4,2721.4,2.219581]
[1769799159288,0.002,2723.4,2721.7,0.2335703]
[1769799160153,4e-06,2724.5,2721.9,0.1024]
[1769799160357,13.45752773,2724.5,2722.0,0.2335703]
[1769799160599,13.27390048,2724.5,2722.0,0.2335703]
[1769799160811,13.27290248,2724.5,2722.0,0.2335703]
[1769799161376,13.27290248,2724.5,2722.2,0.2335703]
[1769799162477,14.19052706,2724.5,2722.1,0.91840858]
[1769799162930,14.19052706,2724.5,2721.2,0.8724]
[1769799162931,14.19052706,2724.5,2720.6,21.97972776]
[1769799163231,13.3652131,2724.3,2722.0,0.91842109]
[1769799163406,13.3652131,2724.1,2720.9,3.73531]
[1769799163719,13.3652131,2724.1,2720.9,0.1024]
[1769799164271,13.3652131,2724.1,2721.0,1.26957379]
[1769799164581,14.28274889,2724.7,2721.7,0.2335703]
[1769799164904,13.3652131,2724.7,2721.9,1.50314409]
[1769799165105,13.3652131,2724.7,2722.0,0.1024]
[1769799165307,13.3652131,2724.7,2722.2,0.1024]
[1769799165617,0.002,2725.3,2722.6,0.2335703]
[1769799165922,0.002,2725.3,2722.7,4.959749]
[1769799166119,1.33872131,2725.3,2722.6,0.2335703]
[1769799166612,14.70393441,2725.3,2722.6,0.2335703]
[1769799167271,15.62127318,2725.3,2722.4,0.2335703]
[1769799167471,15.62127318,2725.3,2722.6,0.2335703]
[1769799168099,14.70393441,2725.3,2722.6,0.2335703]
[1769799168301,15.62129054,2725.3,2722.6,0.2335703]
[1769799168507,14.70393441,2725.3,2722.6,0.2335703]
[1769799168709,15.62127298,2725.3,2722.6,0.2335703]
[1769799168910,14.70393441,2725.3,2722.6,0.2335703]
[1769799169227,1.47039344,2725.2,2722.6,0.2335703]
[1769799169523,13.3652131,2724.9,2722.7,0.91820619]
[1769799169739,13.3652131,2724.9,2722.8,0.2335703]
[1769799170420,1.47039344,2725.2,2723.0,0.2335703]
[1769799170587,0.002,2725.3,2723.0,0.2335703]
[1769799170989,0.002,2725.3,2723.1,1.50314409]
[1769799171183,0.002,2725.3,2723.3,0.2335703]
[1769799171386,13.3652131,2726.3,2723.9,0.2335703]
[1769799171586,13.3652131,2726.3,2724.1,0.2335703]
[1769799172326,13.18258385,2726.3,2724.1,0.2335703]
[1769799172681,12.99895659,2726.3,2724.1,0.2335703]
[1769799173086,0.002,2726.4,2724.1,0.2335703]
[1769799173610,0.002,2726.4,2724.2,0.9177006]
[1769799173820,13.18508485,2726.4,2724.2,0.9177006]
[1769799175500,13.18508485,2726.4,2724.3,0.2335703]
[1769799175728,13.18508485,2726.4,2724.5,0.2335703]
[1769799176307,13.18508485,2726.4,2724.4,0.91763324]
[1769799176308,14.10206469,2726.4,2724.4,0.91763324]
[1769799177539,13.18508485,2726.4,2724.4,0.91763324]
[1769799177710,13.18508485,2726.4,2724.4,0.2335703]
[1769799177910,13.18508485,2726.4,2724.3,3.67053296]
[1769799178838,13.18508485,2726.4,2724.4,0.2335703]
[1769799179139,13.18508485,2726.4,2724.3,3.67053296]
[1769799179789,13.18508485,2726.4,2724.4,0.2335703]
[1769799180312,0.002,2726.4,2724.4,0.2335703]
[1769799180567,13.18308485,2727.0,2724.6,0.2335703]
[1769799180714,13.00045559,2727.0,2724.7,0.1024]
[1769799181037,0.91652537,2727.7,2725.0,10.1555763]
[1769799181038,13.15036717,2727.7,2725.0,10.1555763]
[1769799181238,13.15036717,2727.7,2725.2,0.2335703]
[1769799181449,13.15036717,2727.7,2725.8,0.2335703]
[1769799181613,0.002,2727.8,2726.3,0.91699372]
[1769799181817,0.00100201,2728.7,2726.3,0.91699372]
[1769799182038,14.06755763,2728.7,2726.3,0.91699372]
[1769799182313,13.15136918,2728.7,2726.5,4.393211]
[1769799182642,14.06755962,2728.7,2726.3,0.91699372]
[1769799182846,13.15136918,2728.7,2726.3,0.91699372]
[1769799183019,14.06756028,2728.7,2726.3,0.91699372]
[1769799183860,13.15036717,2728.3,2726.2,0.769]
[1769799184157,13.15036717,2728.3,2726.2,1.68601964]
[1769799184563,13.15036717,2728.1,2726.2,1.68601964]
[1769799184856,0.4644834,2728.0,2725.4,0.91727804]
[1769799185057,0.4644834,2728.0,2725.3,0.91731067]
[1769799185058,13.15036717,2727.9,2725.3,0.91731067]
[1769799185356,13.15036717,2727.9,2725.9,3.66839932]
[1769799185575,13.15036717,2727.9,2725.9,0.91710645]
[1769799185866,13.15036717,2727.7,2726.0,0.9170923]
[1769799187630,13.15036717,2727.7,2725.4,3.66913949]
[1769799187631,14.06690158,2727.7,2725.4,3.66913949]
[1769799187826,14.06689438,2727.7,2725.4,3.66913949]
[1769799188261,14.06689438,2727.7,2725.3,0.9173302]
[1769799188444,13.09377022,2727.5,2725.3,0.9173302]
[1769799189926,13.09377022,2727.3,2725.2,0.769]
[1769799190130,13.09377022,2727.3,2725.2,1.68634651]
[1769799191932,14.01043107,2727.3,2725.2,1.68634651]
[1769799193134,13.09377022,2727.3,2725.2,1.68634651]
[1769799193341,14.01043291,2727.3,2725.2,1.68634651]
[1769799194237,13.09377022,2727.3,2725.2,1.68634651]
[1769799194473,14.01042791,2727.3,2725.2,1.68634651]
[1769799194831,14.01043012,2727.3,2725.2,1.68634651]
[1769799196067,13.09377022,2727.3,2725.2,1.68634651]
[1769799196247,14.0104386,2727.3,2725.2,1.68634651]
[1769799196667,14.0104386,2727.3,2725.4,0.001]
[1769799198603,13.09327022,2726.6,2724.3,0.001]
[1769799198800,13.09277022,2725.8,2723.0,5.0]
[1769799199109,13.09277022,2725.8,2724.3,3.67065884]
[1769799199285,13.09277022,2725.8,2723.1,1.81445956]
[1769799199472,13.09277022,2725.8,2724.8,0.91748743]
[1769799199685,13.09277022,2725.8,2724.5,3.67036721]
[1769799199971,13.09277022,2725.8,2724.7,0.91751156]
[1769799200177,13.09277022,2727.2,2724.7,0.91751156]
[1769799202269,0.91672472,2727.1,2724.6,3.67012882]
[1769799202469,13.09277022,2727.0,2724.6,3.67012882]
[1769799203313,13.09277022,2727.0,2725.3,14.5]
[1769799203608,14.00915891,2728.1,2724.9,0.2335703]
[1769799203809,14.00915891,2728.1,2724.8,1.81445956]
[1769799203991,14.00915891,2728.1,2725.8,14.5]
[1769799204380,14.00915891,2728.1,2725.9,0.91712828]
[1769799204576,13.09277022,2727.9,2725.9,0.91712828]
[1769799205008,13.09277022,2727.9,2726.0,14.5]
[1769799205220,13.09277022,2727.9,2726.1,0.769]
[1769799206097,13.09277022,2727.9,2726.6,14.5]
[1769799206688,0.00100201,2728.7,2726.7,2.73131876]
[1769799207329,13.09377223,2728.7,2727.9,14.5]
[1769799207502,13.09377223,2728.7,2726.9,0.768]
[1769799208278,0.002,2727.7,2726.9,0.768]
[1769799208611,0.002,2727.7,2727.0,14.5]
[1769799208798,0.002,2727.7,2727.0,15.4167577]
[1769799208973,0.002,2727.7,2727.0,15.41675351]
[1769799209179,0.002,2727.7,2727.0,14.5]
[1769799209881,0.002,2727.7,2727.0,15.41673142]
[1769799210082,0.00100201,2728.7,2727.0,0.91673142]
[1769799210681,0.00100201,2728.7,2727.6,14.5]
[1769799211219,0.00100201,2728.7,2727.0,0.91673142]
[1769799211419,0.00100201,2728.7,2727.1,0.2335703]
[1769799211582,0.002,2729.0,2728.1,14.5]
[1769799211782,0.002,2729.0,2728.2,0.768]
[1769799212222,0.002,2729.9,2728.2,0.768]
[1769799212586,12.97442762,2729.9,2728.3,0.91632151]
[1769799213185,0.0012,2729.9,2728.3,0.91632151]
[1769799213497,0.0012,2729.9,2728.8,14.5]
[1769799213928,0.91541885,2731.0,2728.4,12.88284498]
[1769799214143,12.97322762,2731.1,2728.4,12.88284498]
[1769799214429,13.8886226,2731.1,2729.4,14.5]
[1769799214631,15.64363199,2731.1,2729.5,0.664744]
[1769799214932,14.72824271,2731.1,2729.6,0.91588511]
[1769799215233,14.72824271,2731.1,2729.7,14.5]
[1769799215429,12.97322762,2731.1,2729.7,14.5]
[1769799215656,0.91541559,2731.0,2729.7,14.5]
[1769799215925,13.88862448,2731.1,2729.7,14.5]
[1769799216110,12.97322762,2731.1,2729.7,14.5]
[1769799216310,13.88861062,2731.1,2729.7,14.5]
[1769799216512,15.64361462,2731.1,2729.7,14.5]
[1769799216715,15.64361462,2731.1,2729.7,0.5]
[1769799217023,0.91525791,2731.5,2729.7,0.91584165]
[1769799217595,14.50021306,2731.5,2729.4,0.768]
[1769799217833,14.50021306,2731.5,2729.8,14.5]
[1769799218330,13.58495515,2731.1,2728.8,0.91614629]
[1769799218648,14.50020578,2731.5,2729.8,0.915818]
[1769799218800,14.50020578,2731.5,2729.7,1.68383684]
[1769799219001,14.50020578,2731.5,2729.7,0.768]
[1769799219297,0.91525063,2731.5,2729.9,14.5]
[1769799219525,1.3728749,2731.5,2729.9,14.5]
[1769799219822,0.45762427,2731.5,2729.9,14.5]
[1769799220029,1.37288049,2731.5,2729.9,14.5]
[1769799220228,0.002,2731.3,2729.9,14.5]
[1769799221028,0.002,2731.3,2728.9,3.66437842]
[1769799221029,13.58695515,2731.3,2728.6,13.2963108]
[1769799221203,13.58695515,2731.3,2727.4,3.66640917]
[1769799221204,1.35869552,2731.2,2729.3,0.91596169]
[1769799221526,1.35869552,2731.2,2729.2,0.91599616]
[1769799221714,14.94365067,2731.2,2729.2,0.91599616]
[1769799221915,14.94365067,2731.2,2728.8,13.2963108]
[1769799222115,14.94365067,2731.2,2729.4,15.41592808]
[1769799222315,1.49456507,2731.1,2729.4,15.41593423]
[1769799222521,1.49456507,2731.1,2729.4,15.41592467]
[1769799222830,0.91541559,2731.0,2729.5,0.9159147]
[1769799223035,0.91541559,2731.0,2729.4,15.4159308]
[1769799224327,0.91541559,2731.0,2729.4,15.41593489]
[1769799224531,0.45769682,2730.9,2729.4,15.41593489]
[1769799225034,0.002,2731.3,2729.4,15.41593489]
[1769799225237,13.58695515,2731.3,2729.4,15.41595207]
[1769799227133,0.91534856,2731.2,2729.4,15.41595207]
[1769799228216,0.91534856,2731.2,2729.4,15.41594941]
[1769799228805,14.50030371,2731.2,2729.4,14.5]
[1769799229005,13.58495515,2731.0,2729.4,14.5]
[1769799229340,0.91544911,2730.9,2729.4,14.5]
[1769799229506,1.8163698,2731.1,2729.4,15.4159429]
[1769799229704,0.91733143,2731.3,2729.4,15.4159429]
[1769799229907,15.90694452,2731.3,2729.4,15.41594431]
[1769799230815,2.32198937,2731.3,2729.5,13.2963108]
[1769799231020,0.91733143,2731.3,2729.4,16.18394431]
[1769799231333,13.58695515,2731.3,2729.4,15.41594431]
[1769799231537,13.58695515,2731.3,2729.4,14.5]
[1769799232037,17.44495515,2731.3,2729.4,15.41594924]
[1769799232384,0.002,2731.3,2729.4,28.71226004]
[1769799232718,0.002,2731.5,2729.6,13.2963108]
[1769799232925,0.002,2732.6,2729.6,13.2973108]
[1769799232926,0.91491524,2732.5,2729.6,13.2973108]
[1769799233130,0.91689844,2732.6,2730.0,13.2963108]
[1769799233333,0.002,2732.6,2730.6,27.7963108]
[1769799233532,0.002,2732.6,2730.7,13.63002759]
[1769799233724,0.002,2732.6,2730.8,0.33371679]
[1769799233911,0.002,2732.6,2730.9,0.33371679]
[1769799234111,0.002,2732.6,2731.0,15.60171679]
[1769799234312,0.002,2732.6,2731.1,0.33371679]
[1769799234542,0.002,2732.6,2731.2,0.33371679]
[1769799234846,0.002,2732.6,2731.3,0.33371679]
[1769799235046,0.002,2732.6,2731.4,0.33371679]
[1769799235250,0.002,2732.6,2731.5,0.33371679]
[1769799235421,0.002,2732.6,2731.6,0.33371679]
[1769799235612,0.002,2732.6,2731.7,0.33371679]
[1769799235940,0.002,2732.6,2731.8,0.33371679]
[1769799236168,0.91454492,2733.6,2731.9,1.09991679]
[1769799236380,0.0188731,2733.7,2731.9,14.0633108]
[1769799236578,0.0188731,2733.7,2732.1,13.2963108]
[1769799237045,3.65680382,2734.7,2732.0,14.5]
[1769799237046,13.58495515,2735.9,2732.0,13.2963108]
[1769799237246,3.65550519,2735.8,2732.6,13.2963108]
[1769799237439,15.40038213,2735.7,2733.3,14.5]
[1769799237640,13.58495515,2735.5,2733.3,14.5]
[1769799239171,0.01103022,2735.4,2733.3,14.5]
[1769799239359,13.58495515,2735.1,2733.3,14.5]
[1769799240269,13.68735515,2735.0,2733.3,14.5]
[1769799240492,15.60103626,2734.9,2732.7,0.91484262]
[1769799240799,0.1024,2734.4,2731.9,13.2963108]
[1769799241080,0.1024,2734.7,2732.4,13.2963108]
[1769799241240,0.91417705,2734.7,2732.5,14.97820351]
[1769799241439,14.95369067,2734.6,2732.6,14.5]
[1769799241670,0.1024,2734.5,2732.6,14.5]
[1769799241862,13.68735515,2734.5,2732.6,14.5]
[1769799242459,13.68735515,2734.2,2732.0,0.767]
[1769799242666,14.35195515,2734.1,2732.0,0.767]
[1769799242862,14.35195515,2734.1,2731.8,13.2963108]
[1769799242863,0.1024,2733.9,2731.8,13.2963108]
[1769799243273,0.91444456,2733.9,2731.8,14.21143039]
[1769799243943,3.65705736,2734.5,2731.8,14.21143039]
[1769799244276,0.91424392,2734.5,2732.0,13.2963108]
[1769799245352,3.65697568,2734.7,2732.2,13.2963108]
[1769799245555,13.68735515,2734.5,2731.7,13.2963108]
[1769799245754,13.68735515,2734.5,2731.8,0.767]
[1769799245755,0.01103022,2734.4,2731.8,0.767]
[1769799245955,0.1024,2734.1,2731.8,0.767]
[1769799246162,0.1024,2734.1,2731.8,14.0633108]
[1769799246791,0.1024,2734.1,2731.9,0.91511241]
[1769799247103,0.1024,2734.1,2731.0,3.66160898]
[1769799247104,15.32639998,2734.0,2731.2,13.9276657]
[1769799247251,20.43112038,2733.5,2731.2,13.9276657]
[1769799247454,0.91461183,2733.4,2731.2,13.9276657]
[1769799247691,14.87227629,2733.4,2731.1,0.767]
[1769799247982,13.95766446,2733.1,2731.1,0.767]
[1769799248296,14.06006446,2732.4,2729.4,13.9276657]
[1769799248456,0.767,2732.3,2729.8,0.91579708]
[1769799248661,13.95766446,2731.6,2728.7,13.9276657]
[1769799248993,0.64932825,2731.9,2729.7,13.9260657]
[1769799249154,14.07109468,2732.2,2729.7,14.6930657]
[1769799249354,0.1024,2732.0,2729.7,14.6930657]
[1769799249606,14.87271149,2732.1,2729.7,15.60891125]
[1769799250400,0.91504703,2732.1,2729.7,15.60891125]
[1769799251284,3.66018813,2732.4,2729.7,15.60891125]
[1769799251487,0.36601881,2732.3,2729.9,13.9276657]
[1769799251687,1.26395609,2732.3,2729.9,13.9276657]
[1769799251898,0.36601881,2732.3,2729.9,13.9276657]
[1769799252070,0.767,2732.2,2729.7,0.767]
[1769799252420,0.767,2732.2,2729.8,14.8434837]
[1769799252611,0.36601881,2732.3,2729.8,14.8434837]
[1769799252821,0.9148796,2732.6,2729.8,14.8434837]
[1769799253104,3.657376,2734.3,2730.8,13.9276657]
[1769799253305,0.91427735,2734.4,2731.2,13.9276657]
[1769799253473,3.65710942,2734.5,2731.4,13.9276657]
[1769799253821,0.89793728,2734.4,2731.4,13.9276657]
[1769799253973,3.65710942,2734.5,2731.4,13.9276657]
[1769799254172,0.45713533,2734.4,2731.4,13.9276657]
[1769799254372,15.31273707,2734.4,2731.4,13.9276657]
[1769799254774,14.06006446,2734.3,2731.4,13.9276657]
[1769799254973,0.89793728,2734.2,2731.4,13.9276657]
[1769799255191,14.85560174,2734.2,2731.4,13.9276657]
[1769799255421,14.06006446,2733.7,2731.0,0.91541559]
[1769799255586,0.767,2733.6,2731.0,0.91541559]
[1769799256007,0.767,2733.6,2731.1,13.9276657]
[1769799256172,14.95800174,2733.5,2730.9,0.767]
[1769799256373,14.06006446,2733.3,2730.9,0.767]
[1769799256580,14.95800174,2733.3,2731.4,0.001]
[1769799256774,14.85560174,2733.2,2731.4,0.001]
[1769799257374,0.91471223,2733.1,2731.4,0.001]
[1769799257577,0.91471223,2733.1,2731.4,13.9286657]
[1769799257815,3.65777826,2734.0,2731.5,13.9276657]
[1769799258491,0.91441111,2734.0,2731.5,13.9276657]
[1769799259585,3.65964447,2734.1,2731.6,0.91521452]
[1769799259786,3.65964447,2734.1,2731.7,13.9276657]
[1769799261491,0.91444456,2733.9,2731.7,13.9276657]
[1769799261697,1.85298873,2733.8,2731.7,14.84284598]
[1769799261899,0.91444456,2733.9,2731.7,14.84284598]
[1769799262092,0.002,2734.1,2731.7,14.84284598]
[1769799262453,0.9163804,2734.1,2731.7,14.84284598]
[1769799263607,0.002,2734.1,2731.7,14.84284598]
[1769799263806,0.002,2734.1,2731.9,13.9276657]
[1769799264009,0.002,2734.1,2732.1,13.9276657]
[1769799264489,0.04401681,2734.1,2732.1,13.9276657]
[1769799265454,0.11942959,2735.2,2734.2,13.9276657]
[1769799265590,0.002,2735.4,2734.4,14.84194305]
[1769799266741,0.002,2735.4,2734.3,4.42410942]
[1769799266742,0.002,2735.4,2734.3,0.767]
[1769799266946,0.002,2735.4,2734.3,1.68130911]
[1769799267479,0.002,2735.4,2734.3,15.60897481]
[1769799267914,0.002,2735.4,2734.3,14.6946657]
[1769799268111,0.002,2735.4,2734.3,15.60895999]
[1769799268315,0.002,2735.4,2734.4,13.9276657]
[1769799268832,1.14901649,2736.9,2734.5,13.9276657]
[1769799269034,0.23554876,2736.9,2734.5,13.9276657]
[1769799269212,1.14901242,2736.9,2734.4,13.9276657]
[1769799269417,0.23554876,2736.9,2734.4,13.9276657]
[1769799269614,0.23554876,2736.9,2734.6,13.9276657]
[1769799269842,0.001,2735.2,2734.6,13.9276657]
[1769799270145,0.23554876,2736.9,2734.7,13.9276657]
[1769799270444,0.002,2736.5,2734.7,13.9276657]
[1769799271235,1.11048813,2736.3,2734.7,13.9276657]
[1769799271442,1.11048813,2736.3,2734.4,0.91425933]
[1769799271621,1.11048813,2736.3,2734.3,14.6946657]
[1769799271921,1.11048813,2736.3,2734.3,1.68130898]
[1769799272121,1.11048813,2736.3,2733.8,13.9276657]
[1769799272122,13.95966446,2736.2,2733.8,13.9276657]
[1769799272325,1.58361526,2736.1,2733.8,13.9276657]
[1769799272546,1.58361526,2736.1,2734.3,14.84197287]
[1769799272726,0.002,2736.2,2734.3,14.84197287]
[1769799275244,1.1104906,2736.3,2734.3,14.84197287]
[1769799275245,0.9624906,2736.3,2734.3,14.84197287]
[1769799276070,0.04884237,2736.3,2734.3,14.84197287]
[1769799276458,0.96248998,2736.3,2734.3,14.84197287]
[1769799276659,0.04884237,2736.3,2734.3,14.84197287]
[1769799276875,0.04884237,2736.3,2734.5,12.71333052]
[1769799277064,0.04884237,2736.3,2734.7,12.71333052]
[1769799277669,0.04884237,2736.3,2734.9,13.28547655]
[1769799279857,0.04884237,2736.3,2735.0,0.91407678]
[1769799280071,0.04884237,2736.3,2735.0,14.19955333]
[1769799280944,0.21619557,2736.6,2735.0,14.19955333]
[1769799280945,0.23554876,2736.9,2735.3,13.28547655]
[1769799281168,0.23554876,2736.9,2735.5,13.28547655]
[1769799281839,0.23554876,2736.9,2735.7,13.28547655]
[1769799282055,0.27425516,2737.5,2735.6,0.91387629]
[1769799282056,0.27425516,2737.5,2736.3,27.78547655]
[1769799282273,0.27425516,2737.5,2736.4,14.05147655]
[1769799282492,0.27425516,2737.5,2736.4,0.766]
[1769799283576,1.18750513,2737.5,2736.3,14.5]
[1769799284875,13.17027074,2737.0,2734.9,0.001]
[1769799285078,1.95964979,2736.9,2735.0,0.91405863]
[1769799285382,1.95964979,2736.9,2734.9,0.001]